[Event "Hungarian Rapid-ch 2022"]
[Site "Ajka"]
[Date "2022.07.17"]
[Round "11.24"]
[White "Gyenes, Mate"]
[Black "Nemeth, Zoltan"]
[Result "1/2-1/2"]
[ECO "B01"]
[WhiteElo "2048"]
[BlackElo "2242"]
[Annotator "ChessBase"]
[PlyCount "154"]
[EventDate "2022.07.15"]
[EventType "swiss"]
[EventCountry "HUN"]
[SourceTitle "playchess.com"]
[Source "ChessBase"]
[SourceQuality "1"]
[TimeControl "900+10"]

1. e4 {[%emt 0:00:12]} d5 {[%emt 0:00:20]} 2. exd5 {[%emt 0:00:05]} Qxd5 {[%emt 0:00:01]} 3. Nc3 {[%emt 0:00:10]} Qd8 {[%emt 0:00:01]} 4. Nf3 {[%emt 0:00:03]} Nf6 {[%emt 0:00:02]} 5. Bc4 {[%emt 0:00:02]} c6 {[%emt 0:00:29]} 6. O-O {[%emt 0:00:08]} Bf5 {[%emt 0:00:09]} 7. Re1 {[%emt 0:00:17]} e6 {[%emt 0:00:02]} 8. d3 {[%emt 0:00:07]} Be7 {[%emt 0:00:02]} 9. Bf4 {[%emt 0:00:04]} Nbd7 {[%emt 0:00:14]} 10. a4 {[%emt 0:00:21]} Nb6 {[%emt 0:00:09]} 11. Bb3 {[%emt 0:00:21]} Nbd5 {[%emt 0:00:08]} 12. Nxd5 {[%emt 0:00:02]} Nxd5 {[%emt 0:00:05]} 13. Be5 {[%emt 0:00:10]} O-O {[%emt 0:00:44]} 14. h3 {[%emt 0:00:14]} Bg6 {[%emt 0:00:09]} 15. c3 {[%emt 0:00:35]} Bf6 {[%emt 0:00:55]} 16. Bxd5 {[%emt 0:00:09]} Qxd5 {[%emt 0:01:34]} 17. Bxf6 {[%emt 0:00:06]} gxf6 {[%emt 0:00:01]} 18. d4 {[%emt 0:00:12]} Bh5 {[%emt 0:00:45]} 19. Re3 {[%emt 0:00:10]} Kh8 {[%emt 0:00:05]} 20. Qd3 {[%emt 0:01:07]} Rg8 {[%emt 0:00:14]} 21. Kf1 {[%emt 0:01:19]} Rg7 {[%emt 0:00:16]} 22. g3 {[%emt 0:02:01]} Rag8 {[%emt 0:02:12]} 23. c4 {[%emt 0:00:34]} Qd6 {[%emt 0:00:17]} 24. d5 {[%emt 0:00:55]} Bxf3 {[%emt 0:00:42]} 25. Rxf3 {[%emt 0:00:05]} exd5 {[%emt 0:00:02]} 26. cxd5 {[%emt 0:00:02]} Rg5 {[%emt 0:04:14]} 27. dxc6 {[%emt 0:00:44]} Qxc6 {[%emt 0:00:07]} 28. Qc3 {[%emt 0:00:13]} Qa6+ {[%emt 0:01:32]} 29. Kg2 {[%emt 0:01:29]} Re5 {[%emt 0:00:04]} 30. b3 {[%emt 0:00:13]} Kg7 {[%emt 0:00:29]} 31. Qd4 {[%emt 0:00:26]} Rge8 {[%emt 0:00:15]} 32. Rc1 {[%emt 0:00:26]} Re4 {[%emt 0:00:18]} 33. Qd3 {[%emt 0:00:11]} Qe6 {[%emt 0:00:54]} 34. Rc5 {[%emt 0:02:01]} Re5 {[%emt 0:01:22]} 35. Rc4 {[%emt 0:00:20]} Re4 {[%emt 0:00:05]} 36. Rc5 {[%emt 0:00:33]} Re5 {[%emt 0:00:01]} 37. Rc4 {[%emt 0:00:09]} Re4 {[%emt 0:00:43]} 38. Rc5 {[%emt 0:01:45]} Re5 {[%emt 0:00:01]} 39. Qd4 {[%emt 0:00:14]} Rxc5 {[%emt 0:00:30]} 40. Qxc5 {[%emt 0:00:08]} b6 {[%emt 0:00:01]} 41. Qb4 {[%emt 0:00:13]} Qe4 {[%emt 0:00:10]} 42. Qc3 {[%emt 0:00:46]} Re5 {[%emt 0:00:02]} 43. Qd3 {[%emt 0:00:08]} Qc6 {[%emt 0:00:08]} 44. Qd4 {[%emt 0:00:23]} h5 {[%emt 0:00:28]} 45. h4 {[%emt 0:00:22]} Rf5 {[%emt 0:00:37]} 46. Qd3 {[%emt 0:00:14]} Re5 {[%emt 0:00:21]} 47. Qc3 {[%emt 0:01:07]} Qd5 {[%emt 0:00:21]} 48. Qd3 {[%emt 0:00:11]} Qxd3 {[%emt 0:00:20]} 49. Rxd3 {[%emt 0:00:02]} Re4 {[%emt 0:00:01]} 50. Rd7 {[%emt 0:00:43]} a5 {[%emt 0:00:01]} 51. Rd5 {[%emt 0:00:07]} Rb4 {[%emt 0:00:09]} 52. Rd3 {[%emt 0:00:29]} f5 {[%emt 0:00:07]} 53. Kf3 {[%emt 0:00:01]} Kg6 {[%emt 0:00:02]} 54. Rc3 {[%emt 0:00:02]} f4 {[%emt 0:00:23]} 55. Rd3 {[%emt 0:00:03]} fxg3 {[%emt 0:00:02]} 56. fxg3 {[%emt 0:00:05]} f6 {[%emt 0:00:05]} 57. Ke3 {[%emt 0:00:04]} Kf5 {[%emt 0:00:07]} 58. Rd5+ {[%emt 0:00:14]} Kg4 {[%emt 0:00:06]} 59. Kf2 {[%emt 0:00:49]} Rxb3 {[%emt 0:00:04]} 60. Rd4+ {[%emt 0:00:02]} Kh3 {[%emt 0:00:03]} 61. Rd5 {[%emt 0:00:20]} Rxg3 {[%emt 0:00:14]} 62. Rxh5 {[%emt 0:00:05]} Rg4 {[%emt 0:00:41]} 63. Rh6 {[%emt 0:00:24]} Rf4+ {[%emt 0:00:23]} 64. Ke3 {[%emt 0:00:05]} Rxh4 {[%emt 0:00:27]} 65. Rxf6 {[%emt 0:00:16]} Rb4 {[%emt 0:00:02]} 66. Kf3 {[%emt 0:00:17]} Rb3+ {[%emt 0:00:09]} 67. Ke4 {[%emt 0:00:07]} Kg3 {[%emt 0:00:03]} 68. Kd5 {[%emt 0:00:10]} Rb4 {[%emt 0:00:01]} 69. Kc6 {[%emt 0:00:03]} Kg4 {[%emt 0:00:17]} 70. Rf7 {[%emt 0:00:04]} Rxa4 {[%emt 0:00:11]} 71. Kxb6 {[%emt 0:00:02]} Ra1 {[%emt 0:00:01]} 72. Ra7 {[%emt 0:00:04]} a4 {[%emt 0:00:01]} 73. Kb5 {[%emt 0:00:01]} a3 {[%emt 0:00:02]} 74. Kb4 {[%emt 0:00:01]} Rb1+ {[%emt 0:00:07]} 75. Kc3 {[%emt 0:00:06]} Rg1 {[%emt 0:00:16]} 76. Ra4+ {[%emt 0:00:02]} Kf5 {[%emt 0:00:03]} 77. Rxa3 {[%emt 0:00:02]} Rg3+ {[%emt 0:00:02]} 1/2-1/2

[Event "Hungarian Rapid-ch 2022"]
[Site "Ajka"]
[Date "2022.07.17"]
[Round "11.25"]
[White "Szalanczi, Emil"]
[Black "Nemeth, Zalan"]
[Result "0-1"]
[ECO "B47"]
[WhiteElo "2042"]
[BlackElo "2194"]
[Annotator "ChessBase"]
[PlyCount "116"]
[EventDate "2022.07.15"]
[EventType "swiss"]
[EventCountry "HUN"]
[SourceTitle "playchess.com"]
[Source "ChessBase"]
[SourceQuality "1"]
[TimeControl "900+10"]

1. e4 {[%emt 0:00:11]} c5 {[%emt 0:00:12]} 2. Nf3 {[%emt 0:00:06]} Nc6 {[%emt 0:00:05]} 3. Nc3 {[%emt 0:00:05]} e6 {[%emt 0:00:06]} 4. d4 {[%emt 0:00:02]} cxd4 {[%emt 0:00:01]} 5. Nxd4 {[%emt 0:00:01]} Qc7 {[%emt 0:00:01]} 6. Qd3 {[%emt 0:00:03]} a6 {[%emt 0:00:08]} 7. Be2 {[%emt 0:00:19]} Nf6 {[%emt 0:00:11]} 8. Nxc6 {[%emt 0:00:29]} dxc6 {[%emt 0:00:17]} 9. Qg3 {[%emt 0:00:25]} e5 {[%emt 0:01:06]} 10. O-O {[%emt 0:00:32]} Be7 {[%emt 0:00:15]} 11. Kh1 {[%emt 0:00:32]} O-O {[%emt 0:00:18]} 12. a4 {[%emt 0:01:54]} Kh8 {[%emt 0:00:58]} 13. Be3 {[%emt 0:00:32]} Bb4 {[%emt 0:01:17]} 14. Qh4 {[%emt 0:00:40]} Be6 {[%emt 0:01:03]} 15. Bd3 {[%emt 0:00:48]} Be7 {[%emt 0:00:32]} 16. Bg5 {[%emt 0:00:36]} h6 {[%emt 0:00:04]} 17. f4 {[%emt 0:00:42]} exf4 {[%emt 0:03:29]} 18. e5 {[%emt 0:01:13]} Qxe5 {[%emt 0:02:37]} 19. Bxf4 {[%emt 0:00:10]} Qh5 {[%emt 0:00:15]} 20. Qe1 {[%emt 0:00:58]} Rae8 {[%emt 0:00:40]} 21. Ne4 {[%emt 0:00:50]} Bd5 {[%emt 0:01:29]} 22. Ng3 {[%emt 0:02:35]} Qh3 {[%emt 0:00:38]} 23. Ne4 {[%emt 0:01:48]} Nxe4 {[%emt 0:00:51]} 24. Bxe4 {[%emt 0:00:16]} Qe6 {[%emt 0:01:10]} 25. Bxd5 {[%emt 0:00:39]} Qxd5 {[%emt 0:00:02]} 26. Rd1 {[%emt 0:00:30]} Qh5 {[%emt 0:00:03]} 27. Qf2 {[%emt 0:00:54]} Bh4 {[%emt 0:00:10]} 28. Qb6 {[%emt 0:00:30]} Re2 {[%emt 0:00:13]} 29. Qb4 {[%emt 0:00:45]} Rfe8 {[%emt 0:00:18]} 30. Qxb7 {[%emt 0:00:21]} Rxc2 {[%emt 0:00:40]} 31. Qb3 {[%emt 0:00:31]} Qg6 {[%emt 0:00:16]} 32. Qf3 {[%emt 0:00:14]} Ree2 {[%emt 0:00:03]} 33. Rg1 {[%emt 0:00:13]} Rf2 {[%emt 0:00:14]} 34. Qh3 {[%emt 0:00:14]} Rxf4 {[%emt 0:00:11]} 35. Qc8+ {[%emt 0:00:10]} Kh7 {[%emt 0:00:01]} 36. Qd7 {[%emt 0:00:09]} Rff2 {[%emt 0:00:11]} 37. Qh3 {[%emt 0:00:04]} Bf6 {[%emt 0:00:13]} 38. b4 {[%emt 0:00:10]} Be5 {[%emt 0:00:23]} 39. Qd3 {[%emt 0:00:12]} Qxd3 {[%emt 0:00:10]} 40. Rxd3 {[%emt 0:00:01]} Rc4 {[%emt 0:00:06]} 41. Rb3 {[%emt 0:00:14]} Bd6 {[%emt 0:00:05]} 42. Rgb1 {[%emt 0:00:09]} Rff4 {[%emt 0:00:16]} 43. g3 {[%emt 0:00:05]} Rfd4 {[%emt 0:00:02]} 44. b5 {[%emt 0:00:27]} cxb5 {[%emt 0:00:02]} 45. axb5 {[%emt 0:00:01]} axb5 {[%emt 0:00:01]} 46. Rxb5 {[%emt 0:00:03]} Rb4 {[%emt 0:00:01]} 47. R1xb4 {[%emt 0:00:04]} Rxb4 {[%emt 0:00:01]} 48. Rd5 {[%emt 0:00:06]} Rb6 {[%emt 0:00:01]} 49. Kg2 {[%emt 0:00:02]} Kg6 {[%emt 0:00:01]} 50. h4 {[%emt 0:00:09]} Kf6 {[%emt 0:00:15]} 51. h5 {[%emt 0:00:11]} Ke6 {[%emt 0:00:01]} 52. Rd3 {[%emt 0:00:01]} Rb5 {[%emt 0:00:05]} 53. g4 {[%emt 0:00:07]} Rg5 {[%emt 0:00:12]} 54. Kf3 {[%emt 0:00:06]} f5 {[%emt 0:00:03]} 55. gxf5+ {[%emt 0:00:11]} Rxf5+ {[%emt 0:00:03]} 56. Kg4 {[%emt 0:00:34]} Rg5+ {[%emt 0:00:01]} 57. Kh4 {[%emt 0:00:04]} Be7 {[%emt 0:00:01]} 58. Re3+ {[%emt 0:00:30]} Re5+ {[%emt 0:00:02]} 0-1

[Event "Hungarian Rapid-ch 2022"]
[Site "Ajka"]
[Date "2022.07.17"]
[Round "11.26"]
[White "Molnar, Aurel Jr."]
[Black "Miszler, Levente"]
[Result "0-1"]
[ECO "C11"]
[WhiteElo "2014"]
[BlackElo "2243"]
[Annotator "ChessBase"]
[PlyCount "72"]
[EventDate "2022.07.15"]
[EventType "swiss"]
[EventCountry "HUN"]
[SourceTitle "playchess.com"]
[Source "ChessBase"]
[SourceQuality "1"]
[TimeControl "900+10"]

1. e4 {[%emt 0:00:11]} e6 {[%emt 0:00:13]} 2. d4 {[%emt 0:00:03]} d5 {[%emt 0:00:01]} 3. Nc3 {[%emt 0:00:01]} Nf6 {[%emt 0:00:02]} 4. Bd3 {[%emt 0:00:01]} c5 {[%emt 0:00:17]} 5. exd5 {[%emt 0:00:10]} exd5 {[%emt 0:00:19]} 6. Nf3 {[%emt 0:00:21]} Nc6 {[%emt 0:00:26]} 7. dxc5 {[%emt 0:01:21]} Bxc5 {[%emt 0:00:07]} 8. O-O {[%emt 0:00:05]} O-O {[%emt 0:00:09]} 9. h3 {[%emt 0:00:39]} h6 {[%emt 0:00:11]} 10. Bf4 {[%emt 0:00:14]} Be6 {[%emt 0:00:19]} 11. Ne2 {[%emt 0:00:44]} Ne4 {[%emt 0:00:41]} 12. c3 {[%emt 0:04:34]} Qb6 {[%emt 0:01:08]} 13. Qb3 {[%emt 0:03:23]} Bxf2+ {[%emt 0:01:39]} 14. Kh1 {[%emt 0:01:08]} Be3 {[%emt 0:00:13]} 15. Qxb6 {[%emt 0:00:38]} Bxb6 {[%emt 0:00:00]} 16. Nfd4 {[%emt 0:00:38]} Rfe8 {[%emt 0:00:31]} 17. Rae1 {[%emt 0:00:23]} Bd7 {[%emt 0:00:26]} 18. Kh2 {[%emt 0:00:27]} Nc5 {[%emt 0:01:27]} 19. Bc2 {[%emt 0:00:22]} Ne6 {[%emt 0:00:09]} 20. Nxe6 {[%emt 0:00:40]} Bxe6 {[%emt 0:00:03]} 21. Bg3 {[%emt 0:00:19]} g5 {[%emt 0:02:14]} 22. Rf6 {[%emt 0:00:35]} Kg7 {[%emt 0:00:11]} 23. Ref1 {[%emt 0:00:05]} Bd8 {[%emt 0:02:29]} 24. R6f2 {[%emt 0:00:06]} Bb6 {[%emt 0:00:17]} 25. Nd4 {[%emt 0:00:26]} Nxd4 {[%emt 0:01:09]} 26. Be5+ {[%emt 0:00:04]} Kg8 {[%emt 0:00:03]} 27. cxd4 {[%emt 0:00:10]} Rac8 {[%emt 0:00:34]} 28. Ba4 {[%emt 0:00:45]} Re7 {[%emt 0:01:09]} 29. Rf6 {[%emt 0:00:45]} Bc7 {[%emt 0:00:06]} 30. Rxh6 {[%emt 0:00:20]} Bxe5+ {[%emt 0:00:14]} 31. dxe5 {[%emt 0:00:01]} Rc4 {[%emt 0:00:22]} 32. Bb3 {[%emt 0:00:10]} Re4 {[%emt 0:00:05]} 33. h4 {[%emt 0:00:28]} gxh4 {[%emt 0:00:37]} 34. Rh5 {[%emt 0:00:02]} Kg7 {[%emt 0:00:15]} 35. Rf6 {[%emt 0:00:25]} Rxe5 {[%emt 0:00:21]} 36. Rxf7+ {[%emt 0:00:02]} Bxf7 {[%emt 0:00:02]} 0-1

[Event "Hungarian Rapid-ch 2022"]
[Site "Ajka"]
[Date "2022.07.17"]
[Round "11.27"]
[White "Horvath, Kristof"]
[Black "Kozma, Karoly"]
[Result "1/2-1/2"]
[ECO "B22"]
[WhiteElo "2053"]
[BlackElo "2213"]
[Annotator "ChessBase"]
[PlyCount "59"]
[EventDate "2022.07.15"]
[EventType "swiss"]
[EventCountry "HUN"]
[SourceTitle "playchess.com"]
[Source "ChessBase"]
[SourceQuality "1"]
[TimeControl "900+10"]

1. e4 {[%emt 0:00:17]} c5 {[%emt 0:00:02]} 2. c3 {[%emt 0:00:01]} Nf6 {[%emt 0:00:15]} 3. e5 {[%emt 0:00:01]} Nd5 {[%emt 0:00:01]} 4. d4 {[%emt 0:00:01]} cxd4 {[%emt 0:00:02]} 5. Qxd4 {[%emt 0:00:01]} e6 {[%emt 0:00:09]} 6. Nf3 {[%emt 0:00:02]} Nc6 {[%emt 0:00:06]} 7. Qe4 {[%emt 0:00:01]} f5 {[%emt 0:00:45]} 8. Qe2 {[%emt 0:00:02]} b6 {[%emt 0:02:08]} 9. g3 {[%emt 0:00:02]} Bb7 {[%emt 0:00:01]} 10. Bg2 {[%emt 0:00:01]} Be7 {[%emt 0:00:36]} 11. O-O {[%emt 0:00:03]} O-O {[%emt 0:00:03]} 12. c4 {[%emt 0:00:03]} Nc7 {[%emt 0:00:43]} 13. Nc3 {[%emt 0:00:16]} Qe8 {[%emt 0:02:42]} 14. Rd1 {[%emt 0:01:19]} Rd8 {[%emt 0:00:32]} 15. Bf4 {[%emt 0:05:05]} h6 {[%emt 0:01:59]} 16. h4 {[%emt 0:00:01]} Nb8 {[%emt 0:02:11]} 17. Nd4 {[%emt 0:02:22]} Bxg2 {[%emt 0:00:30]} 18. Kxg2 {[%emt 0:00:01]} g5 {[%emt 0:00:31]} 19. hxg5 {[%emt 0:00:02]} hxg5 {[%emt 0:00:01]} 20. Be3 {[%emt 0:00:26]} Qg6 {[%emt 0:00:16]} 21. f4 {[%emt 0:00:15]} Kf7 {[%emt 0:00:43]} 22. Ndb5 {[%emt 0:00:56]} Nxb5 {[%emt 0:01:02]} 23. Nxb5 {[%emt 0:00:01]} Rh8 {[%emt 0:00:03]} 24. Nxa7 {[%emt 0:05:14]} gxf4 {[%emt 0:00:05]} 25. Bxf4 {[%emt 0:00:01]} Rh4 {[%emt 0:00:02]} 26. Kf3 {[%emt 0:01:05]} Bc5 {[%emt 0:00:54]} 27. Rd2 {[%emt 0:01:48]} Qh5+ {[%emt 0:00:16]} 28. Kg2 {[%emt 0:00:06]} Rh2+ {[%emt 0:00:02]} 29. Kf1 {[%emt 0:00:03]} Rxe2 {[%emt 0:00:04]} 30. Rxe2 1/2-1/2

[Event "Hungarian Rapid-ch 2022"]
[Site "Ajka"]
[Date "2022.07.17"]
[Round "11.28"]
[White "Meszaros, Tamas"]
[Black "Kiss, Gergely"]
[Result "1-0"]
[ECO "B12"]
[WhiteElo "2368"]
[BlackElo "2166"]
[Annotator "ChessBase"]
[PlyCount "55"]
[EventDate "2022.07.15"]
[EventType "swiss"]
[EventCountry "HUN"]
[SourceTitle "playchess.com"]
[Source "ChessBase"]
[SourceQuality "1"]
[TimeControl "900+10"]

1. e4 {[%emt 0:00:12]} c6 {[%emt 0:00:22]} 2. d4 {[%emt 0:00:02]} d5 {[%emt 0:00:06]} 3. e5 {[%emt 0:00:01]} Bf5 {[%emt 0:00:12]} 4. Nf3 {[%emt 0:00:02]} e6 {[%emt 0:00:04]} 5. Be2 {[%emt 0:00:01]} Nd7 {[%emt 0:00:06]} 6. O-O {[%emt 0:00:11]} h6 {[%emt 0:00:03]} 7. Nbd2 {[%emt 0:00:42]} Ne7 {[%emt 0:00:11]} 8. Nb3 {[%emt 0:00:02]} g5 {[%emt 0:00:03]} 9. Ne1 {[%emt 0:00:31]} Bg6 {[%emt 0:00:10]} 10. f4 {[%emt 0:00:20]} gxf4 {[%emt 0:01:27]} 11. Nd3 {[%emt 0:01:38]} Rg8 {[%emt 0:02:34]} 12. Nxf4 {[%emt 0:00:13]} Be4 {[%emt 0:00:04]} 13. Nd2 {[%emt 0:01:12]} Bf5 {[%emt 0:01:46]} 14. c4 {[%emt 0:04:51]} Ng6 {[%emt 0:01:11]} 15. cxd5 {[%emt 0:00:36]} Nxf4 {[%emt 0:00:38]} 16. Rxf4 {[%emt 0:00:01]} cxd5 {[%emt 0:00:14]} 17. Nf1 {[%emt 0:00:28]} Qb6 {[%emt 0:01:13]} 18. Kh1 {[%emt 0:01:46]} Be7 {[%emt 0:00:36]} 19. Ng3 {[%emt 0:03:00]} Bg6 {[%emt 0:01:40]} 20. Bh5 {[%emt 0:00:14]} Bg5 {[%emt 0:00:51]} 21. Rf1 {[%emt 0:00:11]} Rc8 {[%emt 0:00:16]} 22. Bxg5 {[%emt 0:00:44]} hxg5 {[%emt 0:00:02]} 23. Qf3 {[%emt 0:01:00]} Bxh5 {[%emt 0:00:44]} 24. Qxh5 {[%emt 0:00:01]} Rf8 {[%emt 0:00:07]} 25. Rad1 {[%emt 0:00:31]} Qxb2 {[%emt 0:00:46]} 26. Qxg5 {[%emt 0:00:05]} Rc2 {[%emt 0:00:22]} 27. Nh5 {[%emt 0:00:05]} Rh8 {[%emt 0:00:41]} 28. Ng7+ {[%emt 0:00:07]} 1-0

[Event "Hungarian Rapid-ch 2022"]
[Site "Ajka"]
[Date "2022.07.17"]
[Round "11.29"]
[White "Kolimar, Kristof Pal"]
[Black "Hardicsay, Peter"]
[Result "1/2-1/2"]
[ECO "A14"]
[WhiteElo "2160"]
[BlackElo "2199"]
[Annotator "ChessBase"]
[PlyCount "137"]
[EventDate "2022.07.15"]
[EventType "swiss"]
[EventCountry "HUN"]
[SourceTitle "playchess.com"]
[Source "ChessBase"]
[SourceQuality "1"]
[TimeControl "900+10"]

1. Nf3 {[%emt 0:00:12]} Nf6 {[%emt 0:00:18]} 2. c4 {[%emt 0:00:03]} e6 {[%emt 0:00:10]} 3. g3 {[%emt 0:00:02]} d5 {[%emt 0:00:10]} 4. Bg2 {[%emt 0:00:01]} Be7 {[%emt 0:00:06]} 5. O-O {[%emt 0:00:05]} O-O {[%emt 0:00:03]} 6. d4 {[%emt 0:00:01]} c6 {[%emt 0:00:09]} 7. Qc2 {[%emt 0:00:03]} b6 {[%emt 0:00:22]} 8. b3 {[%emt 0:00:04]} Nbd7 {[%emt 0:00:17]} 9. Rd1 {[%emt 0:00:02]} Ba6 {[%emt 0:00:12]} 10. Nbd2 {[%emt 0:00:03]} Rc8 {[%emt 0:00:02]} 11. e4 {[%emt 0:00:04]} c5 {[%emt 0:00:35]} 12. exd5 {[%emt 0:00:02]} exd5 {[%emt 0:00:01]} 13. Bb2 {[%emt 0:00:01]} b5 {[%emt 0:00:34]} 14. Rac1 {[%emt 0:03:37]} bxc4 {[%emt 0:02:12]} 15. bxc4 {[%emt 0:00:06]} Qb6 {[%emt 0:00:17]} 16. cxd5 {[%emt 0:03:04]} cxd4 {[%emt 0:01:07]} 17. Qb3 {[%emt 0:00:24]} Qxb3 {[%emt 0:01:31]} 18. Nxb3 {[%emt 0:00:27]} Nxd5 {[%emt 0:00:50]} 19. Nfxd4 {[%emt 0:00:03]} Rxc1 {[%emt 0:04:53]} 20. Nxc1 {[%emt 0:00:27]} N5f6 {[%emt 0:00:36]} 21. Nf5 {[%emt 0:01:31]} Bc5 {[%emt 0:00:12]} 22. Nb3 {[%emt 0:02:58]} Bb6 {[%emt 0:01:08]} 23. Nxg7 {[%emt 0:03:38]} Rc8 {[%emt 0:00:52]} 24. Nf5 {[%emt 0:01:32]} Rc2 {[%emt 0:00:22]} 25. Rd2 {[%emt 0:00:04]} Rxd2 {[%emt 0:00:39]} 26. Nxd2 {[%emt 0:00:02]} Bd3 {[%emt 0:00:30]} 27. Nh6+ {[%emt 0:00:34]} Kf8 {[%emt 0:00:15]} 28. Bf1 {[%emt 0:00:06]} Bg6 {[%emt 0:00:19]} 29. g4 {[%emt 0:00:21]} Nd5 {[%emt 0:00:41]} 30. Bc4 {[%emt 0:00:13]} Nf4 {[%emt 0:00:16]} 31. Kf1 {[%emt 0:00:13]} Nd3 {[%emt 0:00:14]} 32. Ba3+ {[%emt 0:00:09]} Ke8 {[%emt 0:00:04]} 33. f3 {[%emt 0:00:13]} Nf4 {[%emt 0:00:30]} 34. h4 {[%emt 0:00:07]} Bd3+ {[%emt 0:00:08]} 35. Bxd3 {[%emt 0:00:01]} Nxd3 {[%emt 0:00:00]} 36. Nf5 {[%emt 0:00:06]} N7e5 {[%emt 0:00:05]} 37. Ne4 {[%emt 0:00:17]} Nxf3 {[%emt 0:00:05]} 38. Ke2 {[%emt 0:00:06]} Nfe5 {[%emt 0:00:06]} 39. Nf6+ {[%emt 0:00:05]} Kd8 {[%emt 0:00:02]} 40. g5 {[%emt 0:00:03]} Nf4+ {[%emt 0:00:06]} 41. Kd1 {[%emt 0:00:06]} Nc4 {[%emt 0:00:13]} 42. Be7+ {[%emt 0:00:01]} Kc7 {[%emt 0:00:02]} 43. Nxh7 {[%emt 0:00:14]} Kc6 {[%emt 0:00:09]} 44. Nf6 {[%emt 0:00:03]} Ne3+ {[%emt 0:00:14]} 45. Nxe3 {[%emt 0:00:08]} Bxe3 {[%emt 0:00:01]} 46. h5 {[%emt 0:00:26]} Bd4 {[%emt 0:00:10]} 47. h6 {[%emt 0:00:06]} Ng6 {[%emt 0:00:10]} 48. h7 {[%emt 0:00:09]} Be3 {[%emt 0:00:06]} 49. Ng4 {[%emt 0:00:30]} Bd4 {[%emt 0:00:07]} 50. Ba3 {[%emt 0:00:22]} Kd5 {[%emt 0:00:09]} 51. Nh6 {[%emt 0:00:04]} Ke6 {[%emt 0:00:02]} 52. Kc2 {[%emt 0:00:02]} Bg7 {[%emt 0:00:11]} 53. Bb2 {[%emt 0:00:14]} Bxb2 {[%emt 0:00:20]} 54. Kxb2 {[%emt 0:00:01]} f6 {[%emt 0:00:03]} 55. gxf6 {[%emt 0:00:26]} Kxf6 56. Kb3 {[%emt 0:00:02]} Kg7 {[%emt 0:00:06]} 57. Nf5+ {[%emt 0:00:01]} Kxh7 {[%emt 0:00:01]} 58. Kb4 {[%emt 0:00:00]} Ne5 {[%emt 0:00:08]} 59. Kb5 {[%emt 0:00:02]} Kg6 {[%emt 0:00:03]} 60. Nd4 {[%emt 0:00:06]} Kf6 {[%emt 0:00:07]} 61. Ka6 {[%emt 0:00:01]} Ke7 {[%emt 0:00:05]} 62. Kxa7 {[%emt 0:00:02]} Kd6 {[%emt 0:00:01]} 63. Kb6 {[%emt 0:00:02]} Kd5 {[%emt 0:00:06]} 64. Nf5 {[%emt 0:00:36]} Kc4 {[%emt 0:00:06]} 65. Ne3+ {[%emt 0:00:18]} Kb4 {[%emt 0:00:04]} 66. Nc2+ {[%emt 0:00:03]} Ka4 {[%emt 0:00:08]} 67. Kc5 {[%emt 0:00:04]} Nd3+ {[%emt 0:00:09]} 68. Kd4 {[%emt 0:00:05]} Nc1 {[%emt 0:00:06]} 69. Kc3 {[%emt 0:00:06]} 1/2-1/2

[Event "Hungarian Rapid-ch 2022"]
[Site "Ajka"]
[Date "2022.07.17"]
[Round "11.30"]
[White "Ats, Laszlo Gyorgy"]
[Black "Kokeny, Gabor"]
[Result "1/2-1/2"]
[ECO "D00"]
[WhiteElo "1923"]
[BlackElo "2204"]
[Annotator "ChessBase"]
[PlyCount "25"]
[EventDate "2022.07.15"]
[EventType "swiss"]
[EventCountry "HUN"]
[SourceTitle "playchess.com"]
[Source "ChessBase"]
[SourceQuality "1"]
[TimeControl "900+10"]

1. d4 {[%emt 0:00:10]} d5 {[%emt 0:00:12]} 2. Bf4 {[%emt 0:00:02]} Nf6 {[%emt 0:00:21]} 3. e3 {[%emt 0:00:01]} c6 {[%emt 0:00:02]} 4. h4 {[%emt 0:00:01]} Qb6 {[%emt 0:00:32]} 5. b3 {[%emt 0:00:02]} e6 {[%emt 0:00:23]} 6. Bd3 {[%emt 0:00:08]} c5 {[%emt 0:00:11]} 7. c3 {[%emt 0:00:04]} Nc6 {[%emt 0:00:02]} 8. Nf3 {[%emt 0:00:03]} Be7 {[%emt 0:02:08]} 9. Nbd2 {[%emt 0:00:06]} Bd7 {[%emt 0:00:33]} 10. Ne5 {[%emt 0:00:02]} Nxe5 {[%emt 0:01:59]} 11. dxe5 {[%emt 0:01:44]} Ng8 {[%emt 0:00:08]} 12. Qg4 {[%emt 0:00:06]} Bf8 {[%emt 0:00:20]} 13. O-O 1/2-1/2